bitfinex-derivatives/quotes_BTCF0:USTF0_20250114
["timestamp","ask_amount","ask_price","bid_price","bid_amount"]
[1736814924928,0.00158653,94578.0,94577.0,0.413685]
[1736814925227,0.00158653,94578.0,94577.0,1.913685]
[1736814927327,0.00958653,94578.0,94577.0,1.914685]
[1736814927720,0.01358653,94578.0,94577.0,1.914685]
[1736814930132,0.06647053,94578.0,94577.0,1.914685]
[1736814931131,0.18030646,94578.0,94577.0,1.914685]
[1736814933335,0.12742246,94578.0,94577.0,1.914685]
[1736814933829,0.574555,94594.0,94593.0,0.052876]
[1736814934035,0.574555,94594.0,94593.0,0.413676]
[1736814934036,0.53203978,94594.0,94593.0,0.413676]
[1736814934224,0.52168,94594.0,94593.0,0.413676]
[1736814934430,0.52168,94594.0,94593.0,2.274476]
[1736814935031,0.007,94594.0,94593.0,2.275476]
[1736814935438,0.016,94594.0,94593.0,2.276476]
[1736814945841,0.0598,94605.0,94598.0,0.052873]
[1736814946043,0.0598,94605.0,94604.0,0.05287]
[1736814946252,0.0598,94609.0,94608.0,0.052868]
[1736814946543,0.0598,94609.0,94608.0,1.552868]
[1736814947149,0.00158598,94613.0,94612.0,0.052865]
[1736814948846,0.00458598,94613.0,94612.0,0.052865]
[1736814949738,0.00558598,94613.0,94612.0,0.052865]
[1736814950148,0.004,94613.0,94612.0,0.052865]
[1736814950746,0.004,94613.0,94612.0,1.552865]
[1736814951454,0.001,94613.0,94612.0,1.552865]
[1736814951644,0.003,94613.0,94612.0,1.552865]
[1736814956245,0.055865,94613.0,94612.0,1.552865]
[1736814960953,0.06631008,94613.0,94612.0,1.552865]
[1736814968054,0.003,94613.0,94612.0,1.552865]
[1736814975255,0.003,94613.0,94612.0,1.5]
[1736814975561,0.055865,94613.0,94612.0,1.5]
[1736814979062,0.417665,94613.0,94589.0,0.3608]
[1736814979364,0.052878,94590.0,94589.0,0.413678]
[1736814979769,0.118,94599.0,94589.0,0.3608]
[1736814980059,0.05287,94604.0,94603.0,0.05287]
[1736814980267,0.052868,94609.0,94608.0,0.052867]
[1736814980468,0.052868,94609.0,94608.0,0.413667]
[1736814980960,0.052865,94612.0,94611.0,0.052866]
[1736814982765,0.054865,94612.0,94611.0,1.552866]
[1736814982961,0.002,94612.0,94611.0,1.552866]
[1736814983264,0.003,94612.0,94611.0,1.552866]
[1736814987970,0.003,94612.0,94611.0,1.913666]
[1736814990773,0.003,94612.0,94611.0,2.274466]
[1736814994074,0.052859,94624.0,94623.0,0.052859]
[1736814994372,0.052859,94624.0,94623.0,0.413659]
[1736814994761,0.1186,94625.0,94624.0,0.052859]
[1736814996470,0.1186,94625.0,94624.0,0.413659]
[1736814996975,0.171458,94625.0,94624.0,0.413659]
[1736814997168,0.173458,94625.0,94624.0,0.413659]
[1736814998172,0.174458,94625.0,94624.0,0.414659]
[1736815001374,0.1216,94625.0,94624.0,0.414659]
[1736815001971,0.174458,94625.0,94624.0,0.414659]
[1736815002680,0.1216,94625.0,94624.0,0.414659]
[1736815004472,0.174458,94625.0,94624.0,0.414659]
[1736815009778,0.2882348,94625.0,94624.0,0.414659]
[1736815011785,0.174458,94625.0,94624.0,0.414659]
[1736815014979,0.174458,94625.0,94624.0,0.3618]
[1736815015175,0.052865,94612.0,94611.0,1.554026]
[1736815015482,0.052865,94612.0,94611.0,1.5]
[1736815016686,0.052865,94612.0,94588.0,0.413679]
[1736815016687,0.052869,94606.0,94588.0,0.3608]
[1736815016885,0.3608,94606.0,94578.0,0.052884]
[1736815017080,0.052884,94580.0,94578.0,0.052884]
[1736815017483,0.052884,94580.0,94579.0,1.5]
[1736815018788,0.052884,94580.0,94579.0,1.513]
[1736815019489,0.052884,94580.0,94579.0,1.509]
[1736815020389,0.052884,94580.0,94579.0,1.5]
[1736815020591,0.052884,94580.0,94579.0,1.501]
[1736815021392,0.0633438,94580.0,94579.0,1.501]
[1736815022999,0.0643438,94580.0,94579.0,1.501]
[1736815023193,0.0643438,94580.0,94579.0,0.001]
[1736815023392,0.052888,94571.0,94570.0,0.3608]
[1736815023595,0.052888,94571.0,94570.0,1.8608]
[1736815023899,0.052888,94571.0,94570.0,1.5]
[1736815024594,0.052888,94571.0,94570.0,1.507]
[1736815027690,0.052888,94571.0,94570.0,1.5]
[1736815027691,0.058888,94571.0,94570.0,1.5]
[1736815027896,0.060888,94571.0,94570.0,1.5]
[1736815028490,0.058888,94571.0,94570.0,1.5]
[1736815028686,0.060888,94571.0,94570.0,1.5]
[1736815029397,0.052894,94560.0,94559.0,0.3608]
[1736815030399,0.052894,94560.0,94559.0,1.8608]
[1736815030896,0.053894,94560.0,94559.0,1.8608]
[1736815031697,0.06450514,94560.0,94559.0,1.8608]
[1736815034897,0.06350514,94560.0,94559.0,1.8608]
[1736815035099,0.06350514,94560.0,94559.0,1.8618]
[1736815035503,0.06350514,94560.0,94559.0,1.8608]
[1736815046308,0.052894,94560.0,94559.0,1.8608]
[1736815047399,0.052894,94560.0,94559.0,1.913695]
[1736815048400,0.52172,94576.0,94559.0,1.8608]
[1736815048611,0.052892,94565.0,94564.0,0.052891]
[1736815049005,0.052892,94565.0,94564.0,1.552891]
[1736815049510,0.0611,94585.0,94564.0,1.5]
[1736815049815,0.052881,94585.0,94584.0,0.05288]
[1736815050017,0.00158623,94587.0,94586.0,0.05288]
[1736815050309,0.00158623,94587.0,94586.0,0.41368]
[1736815050502,0.00158623,94587.0,94586.0,1.91368]
[1736815050709,0.52224001,94588.0,94587.0,0.052879]
[1736815050912,0.52168,94588.0,94587.0,0.052879]
[1736815051415,0.52168,94588.0,94587.0,0.111079]
[1736815051712,0.052877,94592.0,94591.0,0.052877]
[1736815052617,0.052877,94592.0,94591.0,1.552877]
[1736815053913,0.052877,94592.0,94591.0,1.553877]
[1736815054110,0.052877,94592.0,94591.0,1.554877]
[1736815055004,0.052877,94592.0,94591.0,1.555877]
[1736815056409,0.052877,94592.0,94591.0,1.556877]
[1736815057104,0.052877,94592.0,94591.0,1.553877]
[1736815057311,0.052877,94592.0,94591.0,1.556877]
[1736815058605,0.052877,94592.0,94591.0,1.555877]
[1736815058918,0.052877,94592.0,94591.0,1.556877]
[1736815060210,0.052877,94592.0,94591.0,1.504]
[1736815060414,0.052877,94592.0,94591.0,0.004]
[1736815061022,2.052877,94592.0,94591.0,0.004]
[1736815061917,2.06364321,94592.0,94591.0,0.004]
[1736815062219,2.06364321,94592.0,94591.0,0.003]
[1736815062410,2.06364321,94592.0,94589.0,0.3608]
[1736815062611,0.052878,94590.0,94589.0,0.3608]
[1736815063013,0.052878,94590.0,94589.0,1.5]
[1736815063517,0.16669949,94590.0,94589.0,1.5]
[1736815064314,0.16669949,94590.0,94589.0,1.552878]
[1736815064821,0.16669949,94590.0,94589.0,1.913678]
[1736815065606,0.16669949,94590.0,94589.0,1.914678]
[1736815066011,0.16669949,94590.0,94589.0,1.501]
[1736815066216,0.16769949,94590.0,94589.0,0.001]
[1736815066514,0.052883,94581.0,94580.0,0.3608]
[1736815066715,0.052883,94581.0,94580.0,1.8608]
[1736815066922,0.052883,94581.0,94580.0,1.5]
[1736815067821,0.052883,94581.0,94580.0,1.504]
[1736815068816,0.052883,94581.0,94580.0,1.506]
[1736815071024,0.06328383,94581.0,94580.0,1.506]
[1736815071521,0.06328383,94581.0,94580.0,1.504]
[1736815071720,0.06528383,94581.0,94580.0,1.504]
[1736815072822,0.07028383,94581.0,94580.0,1.5]
[1736815074416,0.06928383,94581.0,94580.0,1.5]
[1736815075719,0.06828383,94581.0,94580.0,1.5]
[1736815075927,0.06928383,94581.0,94580.0,1.5]
[1736815077527,0.06728383,94581.0,94580.0,1.5]
[1736815077725,0.06828383,94581.0,94580.0,1.5]
[1736815079722,0.01540083,94581.0,94567.0,0.3608]
[1736815079921,0.05289,94568.0,94567.0,0.3608]
[1736815080723,0.05289,94568.0,94567.0,1.8608]
[1736815080929,0.05289,94568.0,94567.0,1.8618]
[1736815082122,0.05289,94568.0,94567.0,1.8638]
[1736815083125,0.05289,94568.0,94567.0,1.503]
[1736815083315,0.05289,94568.0,94567.0,1.8638]
[1736815089034,0.06356009,94568.0,94567.0,1.8638]
[1736815090827,0.05289,94568.0,94567.0,1.8638]
[1736815091134,0.052876,94594.0,94585.0,0.05288]
[1736815091335,0.3608,94604.0,94593.0,0.3608]
[1736815091336,0.13025576,94596.0,94593.0,0.3608]
[1736815092030,0.13025576,94596.0,94594.0,1.5]
[1736815092430,0.01033618,94604.0,94594.0,1.5]
[1736815092631,0.006,94596.0,94594.0,1.5]
[1736815093243,0.006,94596.0,94594.0,1.501]
[1736815093944,0.009,94596.0,94594.0,1.501]
[1736815094139,0.0622,94595.0,94594.0,1.501]
[1736815094339,0.1877,94595.0,94594.0,1.501]
[1736815094540,0.1877,94595.0,94594.0,0.001]
[1736815094932,0.5485,94595.0,94594.0,0.001]
[1736815095343,0.5545,94595.0,94594.0,0.001]
[1736815096036,0.5575,94595.0,94594.0,0.001]
[1736815099741,0.1967,94595.0,94594.0,0.001]
[1736815108961,0.3567,94595.0,94594.0,0.001]
[1736815109357,0.3577,94595.0,94594.0,0.001]
[1736815109666,0.3577,94595.0,94581.0,1.5]
[1736815109857,0.10721658,94591.0,94581.0,1.5]
[1736815110057,0.21443316,94591.0,94581.0,1.5]
[1736815110262,0.001,94590.0,94581.0,1.5]
[1736815110464,0.151,94590.0,94581.0,1.5]
[1736815110664,0.001,94590.0,94581.0,1.5]
[1736815112360,0.143,94590.0,94581.0,1.5]
[1736815112665,0.148,94590.0,94581.0,1.5]
[1736815113658,0.3608,94584.0,94562.0,0.36238614]
[1736815113863,0.10721658,94574.0,94562.0,0.36238614]
[1736815114064,0.1849,94573.0,94562.0,0.36238614]
[1736815114265,0.1849,94573.0,94565.0,1.5]
[1736815115662,0.1849,94573.0,94565.0,1.501]
[1736815115865,0.1849,94573.0,94565.0,1.503]
[1736815116869,0.121,94573.0,94565.0,1.503]
[1736815118670,0.1315054,94573.0,94565.0,1.503]
[1736815119068,0.0105054,94573.0,94565.0,1.503]
[1736815119368,0.52220001,94577.0,94566.0,0.0598]
[1736815119572,0.52164,94577.0,94570.0,0.3608]
[1736815119756,0.52164,94577.0,94573.0,1.5]
[1736815120166,0.53226798,94577.0,94573.0,1.5]
[1736815122457,0.53326798,94577.0,94573.0,1.5]
[1736815125969,0.53326798,94577.0,94570.0,0.3608]
[1736815128176,0.53226798,94577.0,94570.0,0.3608]
[1736815129174,0.66251808,94577.0,94570.0,0.3608]
[1736815129969,0.66251808,94577.0,94566.0,0.3608]
[1736815130275,0.10721658,94576.0,94566.0,0.3608]
[1736815131474,0.3608,94572.0,94566.0,0.001]
[1736815131666,0.3608,94572.0,94545.0,0.3608]
[1736815131667,0.1228,94571.0,94545.0,0.3608]
[1736815131977,0.10721658,94556.0,94545.0,0.3608]
[1736815132178,0.10721658,94556.0,94547.0,1.5]
[1736815133172,0.10821658,94556.0,94547.0,1.5]
[1736815133978,0.0621,94555.0,94547.0,1.5]
[1736815134572,0.0621,94555.0,94547.0,1.504]
[1736815134966,0.0621,94555.0,94547.0,1.513]
[1736815135375,0.0631,94555.0,94547.0,1.513]
[1736815135575,0.3608,94548.0,94547.0,1.513]
[1736815135974,0.1286,94555.0,94547.0,1.51]
[1736815136169,0.1286,94555.0,94547.0,1.508]
[1736815136581,0.1326,94555.0,94547.0,1.502]
[1736815137583,0.1326,94555.0,94547.0,1.5]
[1736815137782,0.002,94548.0,94547.0,1.5]
[1736815138479,0.1346,94555.0,94547.0,1.5]
[1736815138675,0.14102315,94555.0,94547.0,1.5]
[1736815138875,0.001,94554.0,94547.0,1.5]
[1736815139481,0.007,94548.0,94547.0,1.5]
[1736815140781,0.005,94548.0,94547.0,1.5]
[1736815140987,0.003,94554.0,94547.0,1.5]
[1736815141188,0.008,94554.0,94547.0,1.5]
[1736815141681,0.004,94548.0,94547.0,1.5]
[1736815142295,0.001,94548.0,94547.0,1.5]
[1736815142486,0.004,94554.0,94547.0,1.5]
[1736815142689,0.004,94554.0,94543.0,0.3608]
[1736815142989,0.003,94548.0,94543.0,0.3608]
[1736815143596,0.003,94548.0,94544.0,1.5]
[1736815144091,0.004,94548.0,94544.0,1.5]
[1736815144791,0.002,94548.0,94544.0,1.5]
[1736815145393,0.001,94548.0,94544.0,1.5]
[1736815147690,0.002,94548.0,94544.0,1.5]
[1736815147891,0.003,94548.0,94544.0,1.5]
[1736815149498,0.002,94548.0,94544.0,1.5]
[1736815151893,0.0696,94547.0,94544.0,1.5]
[1736815154187,0.0706,94547.0,94544.0,1.5]
[1736815154387,0.002,94547.0,94544.0,1.5]
[1736815166401,0.13229878,94547.0,94544.0,1.5]
[1736815172911,0.002,94547.0,94544.0,1.5]
[1736815178106,0.3628,94547.0,94544.0,1.5]
[1736815178311,0.002,94547.0,94544.0,1.5]
[1736815179109,0.002,94547.0,94534.0,0.4888]
[1736815179110,0.001,94546.0,94534.0,0.3608]
[1736815179307,0.14115926,94544.0,94534.0,0.3608]
[1736815179508,0.14115926,94544.0,94535.0,1.5]
[1736815179811,0.07057963,94544.0,94535.0,1.5]
[1736815180901,0.3608,94547.0,94535.0,1.503]
[1736815181102,2.00056001,94548.0,94544.0,0.3608]
[1736815181314,2.0,94548.0,94544.0,0.3608]
[1736815182405,2.0,94548.0,94545.0,0.0651]
[1736815182814,2.0,94548.0,94545.0,0.118003]
[1736815183017,0.13029339,94547.0,94545.0,0.0651]
[1736815184715,0.13229339,94547.0,94545.0,0.0651]
[1736815185116,0.13229339,94547.0,94546.0,1.5]
[1736815185602,0.13329339,94547.0,94546.0,1.5]
[1736815186619,0.13129339,94547.0,94546.0,1.5]
[1736815186812,0.13229339,94547.0,94546.0,1.5]
[1736815187208,0.13229339,94547.0,94546.0,1.552902]
[1736815187516,0.53217008,94561.0,94556.0,0.052896]
[1736815187716,0.53217008,94561.0,94559.0,0.413695]
[1736815187908,0.06345839,94561.0,94560.0,0.119394]
[1736815188104,0.1998,94579.0,94560.0,0.4273]
[1736815188309,0.01081841,94571.0,94567.0,0.052891]
[1736815188513,0.01081841,94571.0,94567.0,1.552891]
[1736815189212,0.07057963,94580.0,94567.0,1.552891]
[1736815189418,0.00558669,94568.0,94567.0,1.552891]
[1736815190520,0.01158669,94568.0,94567.0,1.553891]
[1736815190706,0.01040089,94583.0,94580.0,0.052883]
[1736815190906,0.52236001,94586.0,94582.0,0.3608]
[1736815191114,0.5218,94586.0,94582.0,0.3608]
[1736815193019,0.5325941,94586.0,94582.0,0.3698]
[1736815193523,0.5325941,94586.0,94582.0,0.3788]
[1736815194818,0.5325941,94586.0,94582.0,0.018]
[1736815195017,0.001,94585.0,94574.0,0.3608]
[1736815195212,0.10746366,94584.0,94574.0,0.3608]
[1736815195821,0.53315411,94586.0,94574.0,0.3608]
[1736815196014,0.5325941,94586.0,94574.0,0.3608]
[1736815196322,0.5325941,94586.0,94582.0,0.3608]
[1736815197520,0.5325941,94586.0,94582.0,0.3698]
[1736815198220,0.5335941,94586.0,94582.0,0.3788]
[1736815198828,0.5335941,94586.0,94582.0,0.018]
[1736815199516,0.001,94585.0,94582.0,0.018]
[1736815199716,0.151,94585.0,94582.0,0.018]
[1736815200314,0.001,94585.0,94582.0,0.018]
[1736815201017,0.002,94585.0,94582.0,0.018]
[1736815201210,0.003,94585.0,94582.0,0.018]
[1736815201623,0.003,94585.0,94583.0,1.5]
[1736815202721,0.003,94585.0,94583.0,1.509]
[1736815203532,0.003,94585.0,94583.0,1.518]
[1736815204730,0.002,94585.0,94583.0,1.518]
[1736815205324,0.002,94585.0,94584.0,0.052881]
[1736815205919,0.002,94585.0,94584.0,1.552881]
[1736815206126,0.01,94585.0,94584.0,1.552881]
[1736815206625,0.001,94585.0,94584.0,1.552881]
[1736815206820,0.01,94585.0,94584.0,1.553881]
[1736815207326,0.01,94585.0,94584.0,1.914681]
[1736815207523,0.00158632,94599.0,94585.0,0.3701]
[1736815207727,0.00158632,94599.0,94598.0,0.413673]
[1736815208822,0.52164,94624.0,94598.0,1.083773]
[1736815209027,0.53234327,94624.0,94613.0,0.3608]
[1736815209325,0.53234327,94624.0,94614.0,1.5]
[1736815210625,0.53234327,94624.0,94614.0,1.509]
[1736815211429,0.53234327,94624.0,94614.0,1.518]
[1736815216125,0.53234327,94624.0,94621.0,0.3608]
[1736815216723,0.53234327,94624.0,94614.0,1.51896]
[1736815216930,0.53234327,94624.0,94614.0,1.518]
[1736815217231,0.53234327,94624.0,94621.0,0.009]
[1736815217428,0.53234327,94624.0,94621.0,0.018]
[1736815217840,0.53234327,94624.0,94622.0,1.5]
[1736815218017,0.53234327,94624.0,94614.0,0.009]
[1736815218223,0.52164,94624.0,94617.0,0.052862]
[1736815218423,0.52164,94624.0,94623.0,0.3608]
[1736815218625,0.52164,94624.0,94623.0,1.8608]
[1736815219132,0.01054563,94626.0,94623.0,1.8608]
[1736815219428,0.3608,94635.0,94625.0,0.052858]
[1736815219626,0.3608,94635.0,94625.0,0.16032166]
[1736815220717,0.3608,94635.0,94625.0,0.014]
[1736815222626,0.37119078,94635.0,94625.0,0.014]
[1736815223025,0.01039078,94635.0,94625.0,0.014]
[1736815223231,0.00158563,94643.0,94634.0,0.413653]
[1736815223424,0.00158563,94643.0,94642.0,0.3608]
[1736815224026,0.00158563,94643.0,94642.0,1.8608]
[1736815224732,0.00158563,94643.0,94642.0,1.8618]
[1736815226231,0.00158563,94643.0,94642.0,1.8628]
[1736815227036,0.00158563,94643.0,94642.0,1.915649]
[1736815228035,0.01066324,94650.0,94642.0,1.8628]
[1736815228337,0.0643,94662.0,94649.0,0.3608]
[1736815228531,0.0643,94662.0,94660.0,0.3608]
[1736815229535,0.0015849,94669.0,94660.0,0.3608]
[1736815229725,0.0015849,94669.0,94668.0,0.413634]
[1736815229924,0.0015849,94669.0,94668.0,1.913634]
[1736815231030,0.3608,94698.0,94681.0,0.052827]
[1736815231239,0.1355,94697.0,94683.0,0.3608]
[1736815233126,0.1355,94697.0,94683.0,0.3698]
[1736815233332,0.1355,94697.0,94688.0,0.052823]
[1736815233534,0.1355,94697.0,94691.0,0.052821]
[1736815233838,0.3608,94698.0,94691.0,0.3608]
[1736815234135,0.3608,94698.0,94696.0,0.052818]
[1736815235631,0.1,94700.0,94696.0,0.052818]
[1736815236038,0.1,94700.0,94696.0,0.009]
[1736815236233,0.1,94700.0,94697.0,0.052818]
[1736815236631,0.1,94700.0,94699.0,0.3608]
[1736815238145,0.1,94700.0,94699.0,1.8608]
[1736815238537,0.1,94700.0,94699.0,1.913617]
[1736815239034,0.1,94700.0,94699.0,1.922617]
[1736815239239,0.1,94700.0,94699.0,2.231617]
[1736815239440,0.1,94700.0,94699.0,2.75710386]
[1736815239628,0.0659,94728.0,94715.0,0.052807]
[1736815239829,0.0659,94728.0,94716.0,0.7216]
[1736815240433,0.0659,94728.0,94727.0,1.8608]
[1736815241728,0.07634721,94728.0,94727.0,1.8608]
[1736815242335,0.07634721,94728.0,94727.0,0.3608]
[1736815242643,0.52116,94729.0,94727.0,0.3698]
[1736815242840,0.52116,94729.0,94728.0,1.5]
[1736815245546,0.52116,94729.0,94728.0,1.501]
[1736815246244,0.52116,94729.0,94728.0,0.001]
[1736815246641,0.52116,94729.0,94728.0,1.501]
[1736815249543,2.92116,94729.0,94728.0,1.501]
[1736815250043,2.92116,94729.0,94728.0,1.553801]
[1736815250435,2.4,94729.0,94728.0,1.553801]
[1736815250636,2.4,94729.0,94728.0,1.501]
[1736815265666,2.4,94729.0,94713.0,0.052809]
[1736815265868,0.3608,94721.0,94713.0,0.052809]
[1736815266165,0.0623,94720.0,94714.0,1.5]
[1736815267356,0.1285,94728.0,94719.0,0.3608]
[1736815267562,2.40056001,94729.0,94727.0,0.052801]
[1736815267758,2.4,94729.0,94719.0,0.3608]
[1736815267960,2.4,94729.0,94725.0,0.052802]
[1736815268357,2.4,94729.0,94719.0,0.3608]
[1736815268358,2.4,94729.0,94720.0,0.052805]
[1736815268561,2.4,94729.0,94719.0,0.3608]
[1736815269059,0.3608,94721.0,94714.0,1.50096]
[1736815269259,0.0675,94720.0,94714.0,1.5]
[1736815269454,0.1938,94720.0,94714.0,1.5]
[1736815269861,0.1938,94720.0,94719.0,0.001]
[1736815271768,0.3712221,94721.0,94719.0,0.001]
[1736815271969,0.3712221,94721.0,94714.0,0.001]
[1736815272264,0.3712221,94721.0,94708.0,0.00158368]
[1736815272469,0.10746366,94718.0,94708.0,0.00158368]
[1736815272866,0.10746366,94718.0,94717.0,1.5]
[1736815273162,0.1884,94720.0,94717.0,1.5]
[1736815273880,0.1136869,94719.0,94717.0,1.5]
[1736815276958,0.001,94718.0,94717.0,1.5]
[1736815277264,0.001,94718.0,94708.0,0.00158368]
[1736815277463,0.3608,94709.0,94708.0,0.00158368]
[1736815277758,0.3608,94709.0,94708.0,1.50158368]
[1736815278873,0.4744869,94709.0,94708.0,1.50158368]
[1736815279265,0.1136869,94709.0,94708.0,1.50158368]
[1736815280174,0.3608,94711.0,94708.0,1.50158368]
[1736815280675,0.001,94710.0,94708.0,1.50158368]
[1736815281263,0.2746869,94710.0,94708.0,1.50158368]
[1736815281469,0.2746869,94710.0,94686.0,0.3608]
[1736815281671,0.10746366,94700.0,94686.0,0.3608]
[1736815282063,0.23246366,94700.0,94686.0,0.3608]
[1736815282373,0.23246366,94700.0,94693.0,1.5]
[1736815282767,0.0637,94699.0,94693.0,1.5]
[1736815283667,0.1773869,94699.0,94693.0,1.5]
[1736815285271,0.18813278,94699.0,94693.0,1.5]
[1736815291373,0.001,94698.0,94693.0,1.5]
[1736815291576,0.141,94698.0,94693.0,1.5]
[1736815292177,0.2546869,94698.0,94693.0,1.5]
[1736815292985,0.1136869,94697.0,94693.0,1.5]
[1736815293182,0.2536869,94697.0,94693.0,1.5]
[1736815293385,0.001,94696.0,94693.0,1.5]
[1736815294089,0.1146869,94696.0,94693.0,1.5]
[1736815294689,0.18813278,94699.0,94693.0,1.5]
[1736815298695,0.3608,94694.0,94674.0,0.00158426]
[1736815298996,0.3608,94675.0,94674.0,0.00158426]
[1736815299195,0.3608,94675.0,94674.0,1.5]
[1736815299392,0.3618,94675.0,94674.0,1.5]
[1736815299992,0.3608,94675.0,94674.0,1.5]
[1736815300396,0.4744869,94675.0,94674.0,1.5]
[1736815300587,0.4744869,94675.0,94674.0,1.505]
[1736815301390,0.4744869,94675.0,94674.0,1.5]
[1736815302195,0.48499664,94675.0,94674.0,1.5]
[1736815303399,0.37130974,94675.0,94674.0,1.5]
[1736815304899,0.37430974,94675.0,94674.0,1.5]
[1736815305492,0.37230974,94675.0,94674.0,1.5]
[1736815305692,0.37430974,94675.0,94674.0,1.5]
[1736815306596,0.002,94675.0,94674.0,1.5]
[1736815306901,0.3608,94685.0,94682.0,0.052826]
[1736815307402,0.11371981,94684.0,94682.0,0.052826]
[1736815307600,0.11371981,94684.0,94683.0,1.5]
[1736815308197,0.3608,94699.0,94687.0,0.052823]
[1736815308393,0.3608,94699.0,94689.0,0.10746366]
[1736815308800,0.3608,94699.0,94687.0,0.052823]
[1736815309405,0.3628,94699.0,94687.0,0.052823]
[1736815311002,0.3628,94699.0,94689.0,0.001]
[1736815311907,0.3628,94699.0,94687.0,0.052823]
[1736815312108,0.3608,94699.0,94687.0,0.052823]
[1736815312710,0.3608,94699.0,94689.0,0.001]
[1736815313099,0.3608,94699.0,94694.0,1.5]
[1736815313506,0.001,94698.0,94682.0,0.3608]
[1736815313710,0.10746366,94692.0,94682.0,0.3608]
[1736815313906,0.10746366,94692.0,94683.0,1.5]
[1736815314107,0.0668,94698.0,94683.0,1.5]
[1736815314308,0.3608,94699.0,94688.0,0.10746366]
[1736815314510,0.3608,94699.0,94684.0,0.052825]
[1736815315313,0.10746366,94694.0,94689.0,0.001]
[1736815315810,0.0658,94697.0,94683.0,1.50096]
[1736815316007,0.0658,94697.0,94683.0,1.5]
[1736815316207,0.3608,94699.0,94691.0,0.3608]
[1736815316414,0.3608,94699.0,94685.0,0.052825]
[1736815316607,0.3608,94699.0,94689.0,0.001]
[1736815317313,0.3608,94699.0,94685.0,0.052824]
[1736815317513,0.10746366,94695.0,94685.0,0.052824]
[1736815318013,0.1433,94694.0,94685.0,0.052824]
[1736815319413,0.1433,94694.0,94689.0,0.001]
[1736815320009,0.1433,94694.0,94683.0,1.50104]
[1736815320209,0.1433,94694.0,94683.0,1.5]
[1736815320611,0.1433,94694.0,94689.0,0.001]
[1736815322410,0.3608,94690.0,94689.0,0.001]
[1736815322809,0.3608,94690.0,94683.0,1.50104]
[1736815323010,0.3608,94690.0,94683.0,1.552826]
[1736815323521,0.3608,94690.0,94689.0,0.001]
[1736815323902,0.3608,94690.0,94689.0,1.5]
[1736815324113,0.3608,94690.0,94689.0,1.552822]
[1736815324509,0.3608,94699.0,94690.0,0.052821]
[1736815324913,0.0628,94705.0,94693.0,0.3608]
[1736815325513,0.0628,94705.0,94694.0,0.052819]
[1736815325714,0.0628,94705.0,94695.0,0.052819]
[1736815326315,0.0628,94705.0,94693.0,0.3608]
[1736815326511,0.0628,94705.0,94697.0,0.052817]
[1736815326718,0.0628,94705.0,94699.0,0.052817]
[1736815327014,0.0628,94705.0,94694.0,0.052819]
[1736815327215,0.10746366,94704.0,94694.0,0.052819]
[1736815327416,0.10746366,94704.0,94693.0,0.3608]
[1736815328319,0.0628,94705.0,94694.0,0.05282]
[1736815329516,0.0628,94705.0,94693.0,0.3608]
[1736815329517,0.0628,94705.0,94698.0,0.052817]
[1736815329818,0.0628,94705.0,94695.0,0.001]
[1736815330016,0.0628,94705.0,94700.0,0.052816]
[1736815330215,0.0628,94705.0,94701.0,1.5]
[1736815331521,0.0628,94705.0,94701.0,1.8608]
[1736815331710,0.1413,94711.0,94705.0,0.052813]
[1736815331909,0.52108,94706.0,94705.0,0.052813]
[1736815332311,0.52108,94706.0,94705.0,1.552813]
[1736815332914,0.52108,94706.0,94705.0,1.5]
[1736815333518,0.52108,94706.0,94705.0,1.501]
[1736815337618,2.92108,94706.0,94705.0,1.501]
[1736815338013,2.92108,94706.0,94705.0,0.001]
[1736815338410,3.05115868,94706.0,94705.0,0.001]
[1736815338616,3.21215868,94706.0,94692.0,0.3608]
[1736815338811,0.3608,94695.0,94687.0,1.50096]
[1736815339119,0.3608,94695.0,94687.0,1.5]
[1736815340015,0.001,94694.0,94687.0,1.5]
[1736815341923,0.0733,94693.0,94687.0,1.5]
[1736815342227,0.1482,94692.0,94687.0,1.5]
[1736815343423,0.2882,94692.0,94687.0,1.5]
[1736815344520,0.2882,94692.0,94680.0,0.00158412]
[1736815344521,0.3608,94688.0,94680.0,0.00158412]
[1736815344725,0.5008,94688.0,94680.0,0.00158412]
[1736815344928,0.001,94687.0,94680.0,0.00158412]
[1736815345514,0.001,94687.0,94681.0,1.5]
[1736815346114,0.1472,94692.0,94686.0,0.3608]
[1736815346320,0.10746366,94691.0,94686.0,0.3608]
[1736815346524,0.3608,94687.0,94680.0,0.00158412]
[1736815346724,0.3608,94687.0,94681.0,1.5]
[1736815346928,0.001,94686.0,94681.0,1.5]
[1736815347115,0.001,94686.0,94681.0,1.501]
[1736815347320,0.001,94686.0,94681.0,1.5]
[1736815348030,0.001,94686.0,94680.0,0.00158412]
[1736815348230,0.001,94686.0,94660.0,0.0754]
[1736815348231,0.3608,94681.0,94660.0,0.0754]
[1736815348430,0.10746366,94670.0,94658.0,0.3608]
[1736815348619,0.10746366,94670.0,94661.0,1.5]
[1736815348824,0.1401,94669.0,94661.0,1.5]
[1736815349730,0.001,94668.0,94661.0,1.5]
[1736815350431,0.001,94668.0,94661.0,1.505]